fUSD/lending_fUSD_20250828
["ID","MTS","AMOUNT","RATE_DAILY","PERIOD"]
[381932482,1756420231752,-196.9952992,0.00016943,2]
[381932483,1756420231764,-1496.58906666,0.00016944,2]
[381932484,1756420231777,-892.29370487,0.00016944,2]
[381932485,1756420231790,-111.11722847,0.00016944,2]
[381932486,1756420231801,-500.0,0.00016989,2]
[381932487,1756420231811,-250.0,0.00016989,2]
[381932488,1756420231823,-300.0,0.00016989,2]
[381932490,1756420231834,-251.0,0.00016989,2]
[381932492,1756420231844,-2500.0,0.00017038,2]
[381932493,1756420231855,-5606.55,0.00017078,2]
[381932494,1756420231866,-250.0,0.0001709,2]
[381932495,1756420231877,-300.0,0.0001709,2]
[381932496,1756420231889,-251.0,0.0001709,2]
[381932497,1756420231899,-1000.0,0.00017132,2]
[381932498,1756420231910,-150.0,0.00017162,2]
[381932499,1756420231921,-5163.1,0.00017162,2]
[381932500,1756420231932,-433.48,0.00017162,2]
[381932501,1756420231942,-5278.84,0.00017162,2]
[381932502,1756420231953,-150.99,0.00017162,2]
[381932503,1756420231963,-500.0,0.00017178,2]
[381932504,1756420231974,-5636.25,0.00017179,2]
[381932505,1756420231987,-1782.01639556,0.0001718,2]
[381932506,1756420232000,-1394.86360444,0.0001718,2]
[381932507,1756420232014,-1852.42,0.00017211,2]
[381932508,1756420232025,-250.0,0.00017255,2]
[381932509,1756420232038,-158.88,0.00017257,2]
[381932510,1756420232048,-166.66,0.00017257,2]
[381932511,1756420232059,-192.83,0.00017259,2]
[381932512,1756420232071,-151.0,0.0001729,2]
[381932513,1756420232082,-151.0,0.0001729,2]
[381932514,1756420232093,-151.0,0.0001729,2]
[381932515,1756420232103,-151.0,0.0001729,2]
[381932516,1756420232114,-151.0,0.0001729,2]
[381932517,1756420232125,-151.0,0.0001729,2]
[381932518,1756420232137,-151.0,0.0001729,2]
[381932519,1756420232148,-151.0,0.0001729,2]
[381932520,1756420232160,-151.0,0.0001729,2]
[381932521,1756420232175,-280.60935269,0.0001729,2]
[381932522,1756420232187,-500.0,0.0001729,2]
[381932523,1756420232199,-500.0,0.0001729,2]
[381932524,1756420232211,-500.0,0.0001729,2]
[381932525,1756420232223,-500.0,0.0001729,2]
[381932526,1756420232234,-500.0,0.0001729,2]
[381932527,1756420232246,-500.0,0.0001729,2]
[381932528,1756420232256,-500.0,0.0001729,2]
[381932529,1756420232266,-464.09121229,0.0001729,2]
[381932530,1756420232276,-151.0,0.0001729,2]
[381932531,1756420232287,-605.83216156,0.00017299,2]
[381932532,1756420232297,-838.69768862,0.00017459,2]
[381932533,1756420232307,-1741.2548163,0.000177,2]
[381932534,1756420232319,-4.2477837,0.000177,2]
[381932535,1756420232330,-667.58453979,0.00017744,2]
[381932536,1756420232344,-78.65546021,0.00017744,2]
[381932537,1756420232356,-500.0,0.00017781,2]
[381932538,1756420232367,-548.59453979,0.000178,2]
[381932539,1756420232379,-36648.40460819,0.000178,2]
[381932544,1756420237377,-500.0,0.00017289,2]
[381932545,1756420237388,-185.41073404,0.00017289,2]
[381932546,1756420237399,-239.64734931,0.00017289,2]
[381932547,1756420237409,-291.37033564,0.00017289,2]
[381932548,1756420237420,-11794.35505202,0.000178,2]
[381932549,1756420237431,-1000.0,0.000178,2]
[381932550,1756420237443,-925.73595,0.0001782,2]
[381932551,1756420237454,-172.1321947,0.000179,2]
[381932552,1756420237464,-17821.92064513,0.000179,2]
[381932553,1756420237474,-14687.63072046,0.000179,2]
[381932554,1756420237485,-150.08962002,0.000179,2]
[381932555,1756420237495,-2500.0,0.000179,2]
[381932556,1756420237505,-647.0308566,0.00017961,2]
[381932557,1756420237516,-3709.5840745,0.00017967,2]
[381932558,1756420237526,-1046.5386641,0.00017967,2]
[381932559,1756420237536,-150.0,0.00017967,2]
[381932560,1756420237547,-5186.860301,0.00017967,2]
[381932561,1756420237556,-150.0,0.00017967,2]
[381932562,1756420237567,-150.0,0.00017967,2]
[381932563,1756420237577,-150.26596718,0.00017967,2]
[381932564,1756420237587,-150.0,0.00017967,2]
[381932565,1756420237598,-150.0,0.00017967,2]
[381932566,1756420237608,-150.0,0.00017967,2]
[381932567,1756420237618,-150.0,0.00017967,2]
[381932568,1756420237628,-150.0,0.00017967,2]
[381932569,1756420237638,-500.0,0.00017967,2]
[381932570,1756420237648,-150.0,0.00017967,2]
[381932571,1756420237658,-500.0,0.00017967,2]
[381932572,1756420237668,-150.0,0.00017967,2]
[381932573,1756420237680,-150.0,0.00017967,2]
[381932574,1756420237690,-500.0,0.00017967,2]
[381932575,1756420237700,-150.0,0.00017967,2]
[381932576,1756420237709,-250.0,0.00017967,2]
[381932577,1756420237719,-150.0,0.00017967,2]
[381932578,1756420237729,-150.0,0.00017967,2]
[381932579,1756420237739,-150.0,0.00017967,2]
[381932580,1756420237749,-150.0,0.00017967,2]
[381932581,1756420237759,-150.0,0.00017967,2]
[381932582,1756420237770,-150.0,0.00017967,2]
[381932583,1756420237780,-150.0,0.00017967,2]
[381932584,1756420237791,-150.0,0.00017967,2]
[381932585,1756420237802,-150.0,0.00017967,2]
[381932586,1756420237812,-500.0,0.00017973,2]
[381932587,1756420237823,-500.0,0.00017973,2]
[381932588,1756420237834,-500.0,0.00017973,2]
[381932589,1756420237845,-500.0,0.00017973,2]
[381932590,1756420237857,-500.0,0.00017973,2]
[381932591,1756420237869,-150.08961996,0.00017976,2]
[381932592,1756420237880,-709.97468909,0.00018,2]
[381932593,1756420237892,-88023.06155739,0.00018,2]
[381932594,1756420237908,-844.61155835,0.00018,2]
[381932612,1756420238111,-8217.85177054,0.00018,2]
[381932614,1756420238127,-21436.42848404,0.00018,2]
[381932645,1756420238401,-1046.53866397,0.00018,2]
[381932647,1756420238417,-6155.38844165,0.00018,2]
[381932650,1756420238433,-358.49253442,0.00018,2]
[381932750,1756420239567,-201.32845575,0.00017967,2]
[381932751,1756420239577,-1050.56470975,0.00018,2]
[381932752,1756420239588,-336.790372,0.00018,2]
[381932753,1756420239687,-811.05615663,0.00018,2]
[381932770,1756420242530,-1062.69238931,0.00018,2]
[381932771,1756420242810,-2090.46933171,0.00018,2]
[381932772,1756420242822,-486.79164,0.00018,2]
[381932784,1756420245538,-17138.0,0.000179,2]
[381932877,1756420250502,250.0,0.00015,2]
[381932882,1756421419090,191.18,0.00013699,2]
[381932884,1756421431774,-300.0,0.00016371,2]
[381932885,1756421431786,-59.18599237,0.00016371,2]
[381932886,1756421431796,-250.0,0.00016374,2]
[381932887,1756421431805,-500.0,0.00016471,2]
[381932888,1756421431814,-238.23152491,0.00016471,2]
[381932889,1756421431824,-1200.0,0.00016471,2]
[381932890,1756421431834,-300.0,0.00016471,2]
[381932891,1756421431843,-300.0,0.00016471,2]
[381932892,1756421431853,-377.04121165,0.00016472,2]
[381932893,1756421431864,-609.5259571,0.00016472,2]
[381932894,1756421431906,-500.0,0.00016471,2]
[381932895,1756421431915,-160.47693667,0.00016471,2]
[381932896,1756421431924,-500.0,0.00016471,2]
[381932897,1756421431934,-213.43283125,0.00016472,2]
[381932898,1756421431943,-300.0,0.00016472,2]
[381932899,1756421431952,-184.26,0.00016538,2]
[381932900,1756421431962,-1000.0,0.00016548,2]
[381932901,1756421431971,-440.93621016,0.00016623,2]
[381932902,1756421431982,-2955.87090154,0.00016623,2]
[381932903,1756421431993,-2935.86868876,0.00016623,2]
[381932904,1756421432005,-3132.13419954,0.00016623,2]
[381932905,1756421432015,-6883.00594018,0.00016646,2]
[381932906,1756421432053,-530.20628755,0.00016471,2]
[381932907,1756421432063,-500.0,0.00016471,2]
[381932908,1756421432072,-500.0,0.00016471,2]
[381932909,1756421432082,-9845.99405982,0.00016646,2]
[381932910,1756421432091,-2751.0,0.00016681,2]
[381932911,1756421432100,-158.45,0.00016712,2]
[381932912,1756421432109,-500.0,0.00016724,2]
[381932913,1756421432118,-535.56,0.0001679,2]
[381932914,1756421432127,-5215.37,0.00016819,2]
[381932915,1756421432136,-423.13,0.00016834,2]
[381932916,1756421432145,-720.17,0.00017083,2]
[381932917,1756421432155,-398.93124082,0.00017087,2]
[381932918,1756421432163,-250.0,0.00017316,2]
[381932919,1756421432173,-166.86,0.0001734,2]
[381932920,1756421432183,-559.13179241,0.00017459,2]
[381932921,1756421432192,-192.83,0.00017513,2]
[381932922,1756421432200,-316.48,0.00017641,2]
[381932923,1756421432210,-200.0,0.00017856,2]
[381932925,1756421432219,-553.95923495,0.00017899,2]
[381932927,1756421432228,-167.75314452,0.00017899,2]
[381932929,1756421432237,-2079.8518,0.000179,2]
[381932930,1756421432247,-1000.0,0.000179,2]
[381932931,1756421432256,-172.1321947,0.000179,2]
[381932932,1756421432265,-16039.72858059,0.000179,2]
[381932933,1756421432275,-13218.86764836,0.000179,2]
[381932934,1756421432284,-2500.0,0.000179,2]
[381932935,1756421432293,-151.74871898,0.000179,2]
[381932936,1756421432302,-191.79846833,0.000179,2]
[381932937,1756421432311,-180.192981,0.000179,2]
[381932938,1756421432320,-720.17,0.00017937,2]
[381932939,1756421432331,-28620.79486548,0.00017939,2]
[381932940,1756421432344,-729.82704014,0.00017967,2]
[381932941,1756421432353,-150.0,0.00017967,2]
[381932942,1756421432362,-150.0,0.00017967,2]
[381932943,1756421432371,-150.0,0.00017967,2]
[381932944,1756421432380,-200.0,0.00017967,2]
[381932945,1756421432389,-500.0,0.00017967,2]
[381932946,1756421432398,-500.0,0.00017973,2]
[381932947,1756421432416,-159.55741954,0.00017973,2]
[381932948,1756421432426,-500.0,0.00017973,2]
[381932949,1756421432436,-500.0,0.00017973,2]
[381932950,1756421432445,-150.0,0.00017973,2]
[381932951,1756421432454,-500.0,0.00017973,2]
[381932952,1756421432464,-150.0,0.00017973,2]
[381932953,1756421432474,-200.0,0.00017973,2]
[381932954,1756421432483,-263.0,0.00017973,2]
[381932955,1756421432492,-200.0,0.00017973,2]
[381932956,1756421432501,-150.0,0.00017973,2]
[381932957,1756421432511,-200.0,0.00017973,2]
[381932958,1756421432520,-200.0,0.00017973,2]
[381932959,1756421432529,-200.0,0.00017973,2]
[381932960,1756421432538,-9036.8065384,0.00017987,2]
[381932961,1756421432547,-2146.4380065,0.00017987,2]
[381932962,1756421432556,-1012.4094045,0.00017987,2]
[381932963,1756421432565,-3463.959966,0.00017987,2]
[381932964,1756421432574,-3148.9863848,0.00017988,2]
[381932965,1756421432584,-769.0,0.00018,2]
[381932966,1756421432593,-20949.14378201,0.00018,2]
[381932967,1756421432605,-1774.36806482,0.00018,2]
[381932968,1756421432618,-9500.70554288,0.00018,2]
[381932969,1756421432639,-444.58554686,0.00016471,2]
[381932970,1756421432648,-141.94245078,0.00018,2]
[381932971,1756421432659,-432.07437196,0.00018,2]
[381932972,1756421432670,-4460.68274974,0.00018,2]
[381932973,1756421432682,-775.29872496,0.00018,2]
[381932975,1756421437588,-500.0,0.00016471,2]
[381932976,1756421437598,-244.22153208,0.00016471,2]
[381932978,1756421437955,-255.77846792,0.00016471,2]
[381932980,1756421437965,-100.79775194,0.00016471,2]
[381933011,1756421439925,-399.20224806,0.00016471,2]
[381933012,1756421439940,-500.0,0.00016471,2]
[381933013,1756421439951,-500.0,0.00016471,2]
[381933014,1756421439961,-500.0,0.00016471,2]
[381933015,1756421439972,-354.01118964,0.000179,2]
[381933016,1756421439983,-92551.30748916,0.00018,2]
[381933017,1756421440027,-5504.61580276,0.00018,2]
[381933018,1756421440041,-320.18385971,0.00018,2]
[381933019,1756421440185,-1283.44842186,0.00018,2]
[381933031,1756421442889,-974.96,0.00018,2]
[381933032,1756421442902,-66823.55075839,0.00018,2]
[381933033,1756421442981,-1378.088156,0.00018,2]
[381933038,1756421446023,-1132.8794672,0.00018,2]
[381933039,1756421516203,219.9,0.00030136,120]
[381933042,1756422356119,159.6,0.00013486,2]
[381933043,1756422372780,250.0,0.00014982,2]
[381933045,1756422397237,192.17,0.00013699,2]
[381933056,1756422631885,-221.86666991,0.0001631,2]
[381933057,1756422631895,-300.0,0.00016322,2]
[381933058,1756422631905,-250.0,0.00016335,2]
[381933059,1756422631915,-251.0,0.0001636,2]
[381933060,1756422631924,-251.0,0.00016395,2]
[381933061,1756422631934,-300.0,0.00016409,2]
[381933062,1756422631943,-161.49,0.000165,4]
[381933063,1756422631955,-191.94623372,0.00016556,2]
[381933064,1756422631967,-1000.0,0.00016656,2]
[381933065,1756422631977,-267.78,0.00017015,2]
[381933066,1756422631987,-158.88,0.00017044,2]
[381933067,1756422631997,-150.0,0.00017088,2]
[381933068,1756422632006,-30.45227454,0.00017088,2]
[381933069,1756422632022,-119.54772546,0.00017088,2]
[381933070,1756422632032,-1200.0,0.00017098,2]
[381933071,1756422632042,-300.0,0.00017098,2]
[381933072,1756422632051,-300.0,0.00017098,2]
[381933073,1756422632060,-5391.81600769,0.00017099,2]
[381933074,1756422632070,-277.35679052,0.00017099,2]
[381933075,1756422632079,-432.1,0.00017117,2]
[381933076,1756422632088,-1973.08004894,0.00017154,2]
[381933077,1756422632100,-2731.6764344,0.00017154,2]
[381933078,1756422632112,-886.55671663,0.00017154,2]
[381933079,1756422632121,-5798.19178837,0.00017209,2]
[381933080,1756422632130,-4508.251495,0.00017264,2]
[381933081,1756422632141,-813.75081055,0.00017264,2]
[381933082,1756422632194,-690.72257899,0.00017264,2]
[381933083,1756422632204,-2990.13397886,0.00017319,2]
[381933084,1756422632216,-3245.06172641,0.00017319,2]
[381933085,1756422632226,-1542.18955347,0.00017374,2]
[381933097,1756422640047,-1501.92,0.00017374,2]
[381933107,1756422643048,-281.03,0.00017374,2]
[381933108,1756422643296,-290.96510099,0.00017374,2]
[381933113,1756422646107,-698.17226534,0.00017374,2]
[381933159,1756422728911,13491.753309,7.945e-05,2]
[381933160,1756422793754,466.588913,0.0003013,120]
[381933162,1756423373557,159.6,0.00013337,2]
[381933163,1756423427520,214.57,0.00013699,2]
[381933165,1756423510523,648.76139921,0.000154,2]
[381933166,1756423602435,169.11,8.424e-05,2]
[381933167,1756423758494,-169.11,0.00016518,2]
[381933168,1756423758518,-1000.0,0.00016548,2]
[381933169,1756423758540,-376.19,0.00016552,2]
[381933170,1756423758561,-610.0,0.00016557,2]
[381933171,1756423758583,-2751.0,0.00016576,2]
[381933172,1756423758604,-300.0,0.0001659,2]
[381933173,1756423758625,-4966.25,0.00016605,2]
[381933174,1756423758646,-221.86666991,0.00016795,2]
[381933175,1756423758667,-250.0,0.00016817,2]
[381933176,1756423758688,-300.0,0.00016839,2]
[381933177,1756423758709,-267.78,0.00016882,2]
[381933178,1756423758731,-250.0,0.00016934,2]
[381933179,1756423758751,-2963.31,0.00017053,2]
[381933180,1756423758771,-150.0,0.00017088,2]
[381933181,1756423758793,-424.49333009,0.00017098,2]
[381933182,1756423761002,-775.50666991,0.00017098,2]
[381933183,1756423761027,-5391.81600769,0.00017099,2]
[381933184,1756423761050,-277.35679052,0.00017099,2]
[381933185,1756423761073,-5591.31319997,0.00017154,2]
[381933186,1756423761097,-2964.00733191,0.00017209,2]
[381933187,1756423761908,-2834.18445646,0.00017209,2]
[381933188,1756423761930,-6012.72488454,0.00017264,2]
[381933189,1756423761950,-211.28,0.00017276,2]
[381933190,1756423761970,-219.0,0.00017318,2]
[381933191,1756423761993,-500.0,0.00017318,2]
[381933192,1756423762015,-500.0,0.00017318,2]
[381933193,1756423762037,-529.6869336,0.00017318,2]
[381933194,1756423762059,-4193.1237254,0.00017319,2]
[381933195,1756423763189,-2042.07197987,0.00017319,2]
[381933196,1756423763212,-500.0,0.00017357,2]
[381933197,1756423763233,-1065.12506545,0.00017374,2]
[381933198,1756423763254,-277.66096843,0.00017374,2]
[381933199,1756423763275,-771.44663,0.00017374,2]
[381933200,1756423763297,-6465.89794637,0.00017374,2]
[381933201,1756423763319,-376.19,0.00017379,2]
[381933202,1756423763343,-3501.60740988,0.00017429,2]
[381933203,1756423764655,-277.66096843,0.00017429,2]
[381933204,1756423764682,-532.56253273,0.00017429,2]
[381933205,1756423764707,-3203.5287605,0.00017429,2]
[381933206,1756423764730,-372.75452827,0.00017459,2]
[381933207,1756423764753,-6953.22620868,0.00017484,2]
[381933208,1756423764776,-3660.26700139,0.00017539,2]
[381933209,1756423765973,-266.28126636,0.00017539,2]
[381933210,1756423765996,-3550.22857702,0.00017539,2]
[381933211,1756423766020,-7477.28391481,0.00017594,2]
[381933212,1756423766044,-771.44663,0.0001761,2]
[381933213,1756423766067,-1085.89573279,0.00017649,2]
[381933214,1756423766087,-1000.0,0.000177,2]
[381933215,1756423766109,-848.86387902,0.000177,2]
[381933216,1756423768337,-151.13612098,0.000177,2]
[381933217,1756423768360,-1016.0,0.000177,2]
[381933218,1756423768383,-1000.0,0.000177,2]
[381933219,1756423768410,-1000.0,0.000177,2]
[381933220,1756423768437,-1000.0,0.000177,2]
[381933221,1756423768464,-1000.0,0.000177,2]
[381933222,1756423768489,-1000.0,0.000177,2]
[381933223,1756423768512,-266.28126636,0.000177,2]
[381933224,1756423768535,-1415.583538,0.00017827,2]
[381933225,1756423768560,-2466.300195,0.00017827,2]
[381933226,1756423768583,-200.0,0.00017837,2]
[381933227,1756423768604,-721.12765535,0.00017837,2]
[381933228,1756423768627,-360.44091566,0.00017837,2]
[381933229,1756423768650,-160.0,0.00017837,2]
[381933230,1756423768910,-1000.0,0.00017837,2]
[381933231,1756423768932,-1000.0,0.00017837,2]
[381933232,1756423768953,-1000.0,0.00017837,2]
[381933233,1756423768974,-243.13030865,0.00017837,2]
[381933234,1756423771168,-56.86969135,0.00017837,2]
[381933235,1756423771193,-151.0,0.00017837,2]
[381933236,1756423771216,-1000.0,0.00017837,2]
[381933237,1756423771238,-300.0,0.00017837,2]
[381933238,1756423771259,-322.6107,0.00017837,2]
[381933239,1756423771280,-151.0,0.00017837,2]
[381933240,1756423771307,-756.685958,0.00017837,2]
[381933241,1756423771331,-300.0,0.00017837,2]
[381933242,1756423771354,-151.0,0.00017837,2]
[381933243,1756423771379,-300.0,0.00017837,2]
[381933244,1756423771404,-151.0,0.00017837,2]
[381933245,1756423771428,-151.0,0.00017837,2]
[381933246,1756423771452,-300.0,0.00017837,2]
[381933247,1756423771476,-151.0,0.00017837,2]
[381933248,1756423771707,-151.0,0.00017837,2]
[381933249,1756423771731,-300.0,0.00017837,2]
[381933250,1756423771756,-151.0,0.00017837,2]
[381933251,1756423771778,-151.0,0.00017837,2]
[381933252,1756423771799,-183.0,0.00017837,2]
[381933253,1756423771819,-151.0,0.00017837,2]
[381933254,1756423771840,-151.0,0.00017837,2]
[381933255,1756423771861,-151.0,0.00017837,2]
[381933256,1756423771883,-605.17815522,0.00017837,2]
[381933257,1756423771905,-600.0,0.00017837,2]
[381933258,1756423771926,-600.0,0.00017837,2]
[381933259,1756423771948,-600.0,0.00017837,2]
[381933260,1756423771969,-151.0,0.00017837,2]
[381933261,1756423771989,-600.0,0.00017837,2]
[381933262,1756423772009,-238.98762149,0.00017837,2]
[381933263,1756423772030,-200.0,0.00017856,2]
[381933264,1756423772052,-5773.66787394,0.000179,2]
[381933267,1756423794408,-6123.31300962,0.000179,2]
[381933268,1756423794435,-547.26381769,0.000179,2]
[381933269,1756423794457,-815.42317269,0.000179,2]
[381933294,1756423832245,-248.50301885,0.00017459,2]
[381933295,1756423832254,-82.99307446,0.00017569,2]
[381933296,1756423832266,-167.00692554,0.00017569,2]
[381933297,1756423832275,-251.0,0.00017679,2]
[381933298,1756423832285,-251.0,0.00017823,2]
[381933299,1756423832294,-300.0,0.00017899,2]
[381933300,1756423832303,-1200.0,0.00017899,2]
[381933301,1756423832313,-13620.33254985,0.000179,2]
[381933302,1756423832322,-152.53437704,0.000179,2]
[381933303,1756423832332,-172.61862156,0.000179,2]
[381933304,1756423832341,-300.0,0.0001792,2]
[381933305,1756423832350,-468.82223639,0.00017939,2]
[381933306,1756423832360,-500.0,0.00017973,2]
[381933307,1756423832371,-349.8991239,0.00017973,2]
[381933308,1756423832380,-507.09617407,0.00017973,2]
[381933309,1756423832390,-213.20794228,0.00017973,2]
[381933310,1756423832399,-500.0,0.00017973,2]
[381933311,1756423832408,-150.0,0.00017973,2]
[381933312,1756423832418,-500.0,0.00017973,2]
[381933313,1756423832430,-200.0,0.00017973,2]
[381933314,1756423832440,-150.0,0.00017973,2]
[381933315,1756423832450,-200.0,0.00017973,2]
[381933316,1756423832461,-150.0,0.00017973,2]
[381933317,1756423832471,-500.0,0.00017973,2]
[381933318,1756423832480,-1809.57891,0.00017987,2]
[381933319,1756423832489,-1715.4946612,0.00017988,2]
[381933320,1756423832499,-1029.4317058,0.00017999,5]
[381933321,1756423832511,-387.77146446,0.00017999,2]
[381933322,1756423832520,-613.0,0.00018,2]
[381933323,1756423832531,-27352.70530791,0.00018,2]
[381933326,1756423838108,-158.88,0.00017328,2]
[381933327,1756423838118,-142.63651019,0.00017999,2]
[381933328,1756423838265,-27.32870465,0.00017999,2]
[381933329,1756423838275,-326.14182516,0.00018,2]
[381933344,1756423839990,-2335.7362,0.00018,2]
[381933345,1756423840002,-685.8081,0.00018,2]
[381933346,1756423840020,-346.25096,0.00018,2]
[381933347,1756423840192,-531.08131506,0.00018,2]
[381933348,1756423840284,-446.08647671,0.00018,2]
[381933349,1756423840376,-1088.11676884,0.00018,2]
[381933355,1756423843362,-1408.80322685,0.00018,2]
[381933363,1756423846081,-302.0,0.00018,2]
[381933364,1756423846094,-431.885,0.00018,2]
[381933365,1756423846108,-1466.33591318,0.00018,2]
[381933366,1756423846194,-13948.77910915,0.00018,2]
[381933367,1756423846287,-727.42898272,0.00018,2]
[381933368,1756423846375,-1132.84286779,0.00018,2]
[381933369,1756423846468,-949.65,0.00018,2]
[381933371,1756423854030,250.0,0.00015,2]
[381933375,1756424381439,214.43,0.00013699,2]
[381933378,1756424692124,1994.46,8.842e-05,2]
[381933379,1756424692367,1994.46,9.289e-05,2]
[381933380,1756424692580,1994.46,9.736e-05,2]
[381933381,1756424692971,1994.46,0.00010183,2]
[381933382,1756424693239,1994.46,0.0001063,2]
[381933383,1756424693450,1994.46,0.00011077,2]
[381933384,1756424693673,1994.46,0.00011524,2]
[381933385,1756424694079,1994.46,0.00011971,2]
[381933386,1756424694298,1994.46,0.00012418,2]
[381933387,1756424694530,1994.46,0.00012865,2]
[381933388,1756424694804,1994.46,0.00013313,2]
[381933389,1756424695238,1994.46,0.0001376,2]
[381933390,1756424695664,1994.46,0.00014207,2]
[381933391,1756424695712,1994.46,0.00014654,2]
[381933392,1756424695965,1994.46,0.00015101,2]
[381933393,1756424696201,1994.46,0.00015548,2]
[381933394,1756424696442,1994.46,0.00015995,2]
[381933406,1756425032252,-1994.46,0.00016442,2]
[381933407,1756425032262,-2500.0,0.00016554,2]
[381933408,1756425032271,-300.0,0.00016666,2]
[381933409,1756425032280,-251.0,0.00016666,2]
[381933410,1756425032289,-1994.46,0.00016889,2]
[381933411,1756425032299,-251.0,0.0001711,2]
[381933412,1756425032307,-1200.0,0.00017335,2]
[381933413,1756425032317,-1994.46,0.00017336,2]
[381933414,1756425032326,-225.71,0.00017376,2]
[381933415,1756425032335,-500.0,0.00017425,2]
[381933416,1756425032344,-1000.0,0.00017508,2]
[381933417,1756425032353,-60780.1322363,0.000178,3]
[381933418,1756425032369,-2174.65779542,0.000178,3]
[381933419,1756425032381,-606.97,0.000178,3]
[381933420,1756425032392,-927.61514,0.000178,3]
[381933421,1756425032403,-424.0,0.000178,3]
[381933422,1756425032415,-1374.05177347,0.000178,3]
[381933423,1756425032426,-3243.46525856,0.000178,3]
[381933424,1756425032437,-16248.1474629,0.000178,3]
[381933425,1756425032453,-594.37672668,0.000178,3]
[381933426,1756425032628,-393.2474532,0.000178,3]
[381933427,1756425032639,-323.3292545,0.000178,3]
[381933436,1756425038235,-797.37,0.000178,3]
[381933437,1756425038466,-383.376,0.000178,3]
[381933606,1756425040367,-13015.66578965,0.000178,3]
[381933608,1756425040379,-257.79851763,0.000178,3]
[381933610,1756425040391,-1192.46141617,0.000178,3]
[381933613,1756425040404,-9457.26284103,0.000178,3]
[381933615,1756425040416,-1591.53602449,0.000178,3]
[381933617,1756425040425,-409.82097998,0.000178,3]
[381933619,1756425040434,-654.80390145,0.00017808,2]
[381933621,1756425040444,-200.0,0.00017856,2]
[381933623,1756425040453,-277.35679052,0.00017889,2]
[381933625,1756425040462,-500.0,0.0001789,2]
[381933627,1756425040471,-567.087,0.000179,2]
[381933629,1756425040481,-517.41306398,0.000179,2]
[381933631,1756425040492,-13176.21771633,0.000179,2]
[381933633,1756425040502,-500.0,0.00017973,2]
[381933635,1756425040511,-178.03,0.00017987,2]
[381933637,1756425040519,-178.03,0.00017987,2]
[381933639,1756425040529,-178.03,0.00017987,2]
[381933641,1756425040538,-1175.3455269,0.00017988,2]
[381933643,1756425040547,-160.0,0.00017989,2]
[381933645,1756425040556,-721.12765535,0.00017989,2]
[381933647,1756425040565,-322.6107,0.00017989,2]
[381933649,1756425040574,-178.03,0.0001799,2]
[381933651,1756425040583,-325.86990727,0.0001799,2]
[381933653,1756425040592,-271.44002513,0.00017996,2]
[381933655,1756425040602,-190.00801759,0.00017996,2]
[381933657,1756425040611,-151.0,0.00017997,2]
[381933659,1756425040619,-2278.06433787,0.00017997,2]
[381933685,1756425040862,-302.3391397,0.00017997,2]
[381933784,1756425043467,-3768.50303373,0.00017997,2]
[381933785,1756425043479,-645.42190025,0.00017997,2]
[381933790,1756425046359,-172.09481639,0.000179,2]
[381933791,1756425046369,-4457.72098292,0.00017997,2]
[381933792,1756425046413,-951.56216492,0.00017997,2]
[381933793,1756425046674,-4664.887554,0.00017997,2]
[381933794,1756425046686,-2311.70000002,0.00017997,2]
[381933795,1756425047701,199.09381828,0.0003013,120]
[381933796,1756425109045,380.19025013,0.0003013,120]
[381933797,1756425111255,391.0,0.0003013,120]